[Event "Early Titled Tuesday Blitz | February 8 2022"]
[White "Turzo, Attila"]
[Black "Kazarian, Anna-Maja"]
[WhiteFideId "704954"]
[BlackFideId "1033689"]
[WhiteElo "2474"]
[BlackElo "2004"]
[Result "1-0"]
[Round "08"]
[TimeControl "180+1"]
[Date "2022.02.08"]
[WhiteClock "0:00:39"]
[BlackClock "0:00:02"]

1. d4 {[%clk 0:03:00]}  d5 {[%clk 0:02:59]} 2. c4 {[%clk 0:03:01]}  e6 {[%clk 0:02:59]} 3. Nf3 {[%clk 0:03:00]}  Nf6 {[%clk 0:02:59]} 4. Nc3 {[%clk 0:02:59]}  Be7 {[%clk 0:02:59]} 5. Bf4 {[%clk 0:02:59]}  O-O {[%clk 0:03:00]} 6. e3 {[%clk 0:02:58]}  c6 {[%clk 0:03:00]} 7. c5 {[%clk 0:02:57]}  a5 {[%clk 0:02:55]} 8. a3 {[%clk 0:02:55]}  b6 {[%clk 0:02:54]} 9. b4 {[%clk 0:02:55]}  b5 {[%clk 0:02:39]} 10. Bd3 {[%clk 0:02:43]}  Nbd7 {[%clk 0:02:35]} 11. h3 {[%clk 0:02:38]}  Re8 {[%clk 0:02:33]} 12. O-O {[%clk 0:02:38]}  Nf8 {[%clk 0:02:32]} 13. e4 {[%clk 0:02:28]}  dxe4 {[%clk 0:02:19]} 14. Nxe4 {[%clk 0:02:29]}  Nd5 {[%clk 0:02:19]} 15. Bd2 {[%clk 0:02:28]}  axb4 {[%clk 0:02:16]} 16. axb4 {[%clk 0:02:29]}  Rxa1 {[%clk 0:02:16]} 17. Qxa1 {[%clk 0:02:29]}  Qc7 {[%clk 0:02:14]} 18. Re1 {[%clk 0:02:27]}  Ng6 {[%clk 0:02:08]} 19. g3 {[%clk 0:02:23]}  Bb7 {[%clk 0:02:06]} 20. h4 {[%clk 0:02:18]}  Ra8 {[%clk 0:01:57]} 21. Qb2 {[%clk 0:02:16]}  Nf8 {[%clk 0:01:47]} 22. Ne5 {[%clk 0:02:12]}  f6 {[%clk 0:01:43]} 23. Nf3 {[%clk 0:02:10]}  Bc8 {[%clk 0:01:29]} 24. Kg2 {[%clk 0:02:09]}  Bd7 {[%clk 0:01:26]} 25. Ra1 {[%clk 0:02:08]}  Rxa1 {[%clk 0:01:18]} 26. Qxa1 {[%clk 0:02:09]}  Be8 {[%clk 0:01:12]} 27. Qa8 {[%clk 0:02:07]}  Bg6 {[%clk 0:01:08]} 28. Kg1 {[%clk 0:01:52]}  Kf7 {[%clk 0:00:56]} 29. Kg2 {[%clk 0:01:51]}  h6 {[%clk 0:00:50]} 30. Ne1 {[%clk 0:01:50]}  Nd7 {[%clk 0:00:43]} 31. f3 {[%clk 0:01:32]}  f5 {[%clk 0:00:32]} 32. Nf2 {[%clk 0:01:28]}  e5 {[%clk 0:00:24]} 33. Nc2 {[%clk 0:01:14]}  exd4 {[%clk 0:00:16]} 34. Nxd4 {[%clk 0:01:13]}  Ne5 {[%clk 0:00:16]} 35. Bxf5 {[%clk 0:01:09]}  Bxf5 {[%clk 0:00:14]} 36. Nxf5 {[%clk 0:01:09]}  Nc4 {[%clk 0:00:11]} 37. Qa2 {[%clk 0:01:02]}  Qe5 {[%clk 0:00:07]} 38. Nxe7 {[%clk 0:00:56]}  Kxe7 {[%clk 0:00:03]} 39. Ne4 {[%clk 0:00:55]}  Nde3+ {[%clk 0:00:02]} 40. Bxe3 {[%clk 0:00:50]}  Nxe3+ {[%clk 0:00:03]} 41. Kf2 {[%clk 0:00:46]}  Nd1+ {[%clk 0:00:03]} 42. Ke1 {[%clk 0:00:45]}  Nc3 {[%clk 0:00:02]} 43. Qb2 {[%clk 0:00:39]} 1-0


[Site "https://www.chess.com"]

[Event "Early Titled Tuesday Blitz | February 8 2022"]
[White "Vifleemskaia, Svetlana"]
[Black "Shkapenko, Pavel"]
[WhiteFideId "4129490"]
[BlackFideId "4151933"]
[WhiteElo "1901"]
[BlackElo "2386"]
[Result "0-1"]
[Round "08"]
[TimeControl "180+1"]
[Date "2022.02.08"]
[WhiteClock "0:00:01"]
[BlackClock "0:00:21"]

1. d4 {[%clk 0:03:00]}  Nf6 {[%clk 0:02:52]} 2. c4 {[%clk 0:03:00]}  e6 {[%clk 0:02:47]} 3. Nc3 {[%clk 0:03:00]}  Bb4 {[%clk 0:02:37]} 4. e3 {[%clk 0:02:59]}  c5 {[%clk 0:02:34]} 5. Ne2 {[%clk 0:02:57]}  cxd4 {[%clk 0:02:34]} 6. exd4 {[%clk 0:02:57]}  O-O {[%clk 0:02:34]} 7. a3 {[%clk 0:02:57]}  Be7 {[%clk 0:02:34]} 8. d5 {[%clk 0:02:53]}  exd5 {[%clk 0:02:34]} 9. cxd5 {[%clk 0:02:53]}  Bc5 {[%clk 0:02:34]} 10. b4 {[%clk 0:02:43]}  Bb6 {[%clk 0:02:33]} 11. h3 {[%clk 0:02:23]}  Re8 {[%clk 0:02:28]} 12. Bd2 {[%clk 0:02:18]}  d6 {[%clk 0:02:18]} 13. Qc2 {[%clk 0:02:15]}  Nbd7 {[%clk 0:02:17]} 14. Kd1 {[%clk 0:02:13]}  Bxf2 {[%clk 0:02:15]} 15. Bf4 {[%clk 0:02:09]}  Ne5 {[%clk 0:02:15]} 16. Ng3 {[%clk 0:02:02]}  Bd4 {[%clk 0:02:04]} 17. Nge2 {[%clk 0:01:59]}  Ng6 {[%clk 0:01:57]} 18. Bg5 {[%clk 0:01:53]}  Be5 {[%clk 0:01:49]} 19. h4 {[%clk 0:01:46]}  h6 {[%clk 0:01:43]} 20. h5 {[%clk 0:01:45]}  Nf8 {[%clk 0:01:40]} 21. Bd2 {[%clk 0:01:37]}  Ng4 {[%clk 0:01:34]} 22. Kc1 {[%clk 0:01:34]}  Nf2 {[%clk 0:01:31]} 23. Rg1 {[%clk 0:01:33]}  Qf6 {[%clk 0:01:32]} 24. Kb2 {[%clk 0:01:26]}  Bf5 {[%clk 0:01:31]} 25. Qb3 {[%clk 0:01:21]}  Rac8 {[%clk 0:01:21]} 26. Ka2 {[%clk 0:01:20]}  Bh2 {[%clk 0:01:11]} 27. g4 {[%clk 0:01:06]}  Bxg1 {[%clk 0:01:02]} 28. gxf5 {[%clk 0:00:57]}  Bh2 {[%clk 0:01:03]} 29. Bg2 {[%clk 0:00:48]}  Qxf5 {[%clk 0:00:58]} 30. Rf1 {[%clk 0:00:45]}  Qd3 {[%clk 0:00:57]} 31. Rxf2 {[%clk 0:00:40]}  Qxd2+ {[%clk 0:00:57]} 32. Qb2 {[%clk 0:00:40]}  Qxb2+ {[%clk 0:00:56]} 33. Kxb2 {[%clk 0:00:39]}  Be5 {[%clk 0:00:57]} 34. Kb3 {[%clk 0:00:37]}  Bxc3 {[%clk 0:00:58]} 35. Nxc3 {[%clk 0:00:37]}  Re3 {[%clk 0:00:58]} 36. Rc2 {[%clk 0:00:36]}  Nd7 {[%clk 0:00:58]} 37. Kb2 {[%clk 0:00:30]}  Ne5 {[%clk 0:00:53]} 38. Bf1 {[%clk 0:00:19]}  Nf3 {[%clk 0:00:37]} 39. Nb5 {[%clk 0:00:14]}  Rxc2+ {[%clk 0:00:35]} 40. Kxc2 {[%clk 0:00:14]}  Re1 {[%clk 0:00:23]} 41. Bc4 {[%clk 0:00:13]}  Re4 {[%clk 0:00:21]} 42. Bd3 {[%clk 0:00:10]}  Nd4+ {[%clk 0:00:21]} 43. Kd2 {[%clk 0:00:07]}  Nxb5 {[%clk 0:00:19]} 44. Bxe4 {[%clk 0:00:06]}  Nxa3 {[%clk 0:00:20]} 45. Bd3 {[%clk 0:00:04]}  a6 {[%clk 0:00:21]} 46. Ke3 {[%clk 0:00:02]}  Nb5 {[%clk 0:00:21]} 47. Kf4 {[%clk 0:00:01]}  Kf8 {[%clk 0:00:21]} 48. Bf5 {[%clk 0:00:01]}  Nc7 {[%clk 0:00:21]} 0-1


[Site "https://www.chess.com"]

[Event "Early Titled Tuesday Blitz | February 8 2022"]
[White "Vlassov, Nikolai"]
[Black "Redzisz, Michal"]
[WhiteFideId "4103360"]
[BlackFideId "21816107"]
[WhiteElo "2407"]
[BlackElo "1961"]
[Result "1-0"]
[Round "08"]
[TimeControl "180+1"]
[Date "2022.02.08"]
[WhiteClock "0:00:17"]
[BlackClock "0:00:06"]

1. e4 {[%clk 0:03:00]}  c5 {[%clk 0:02:59]} 2. c3 {[%clk 0:03:00]}  d5 {[%clk 0:02:58]} 3. exd5 {[%clk 0:03:00]}  Qxd5 {[%clk 0:02:59]} 4. d4 {[%clk 0:03:00]}  Nc6 {[%clk 0:02:59]} 5. Nf3 {[%clk 0:03:00]}  Bf5 {[%clk 0:02:58]} 6. Be3 {[%clk 0:02:57]}  Nf6 {[%clk 0:02:57]} 7. dxc5 {[%clk 0:02:56]}  Qxd1+ {[%clk 0:02:57]} 8. Kxd1 {[%clk 0:02:56]}  Nd5 {[%clk 0:02:50]} 9. Bb5 {[%clk 0:02:56]}  Nxe3+ {[%clk 0:02:48]} 10. fxe3 {[%clk 0:02:56]}  O-O-O+ {[%clk 0:02:41]} 11. Ke2 {[%clk 0:02:56]}  e6 {[%clk 0:02:30]} 12. Bxc6 {[%clk 0:02:54]}  bxc6 {[%clk 0:02:31]} 13. Ne5 {[%clk 0:02:40]}  Bxc5 {[%clk 0:02:12]} 14. b4 {[%clk 0:01:54]}  Rd5 {[%clk 0:01:07]} 15. Nxc6 {[%clk 0:01:37]}  Bg4+ {[%clk 0:01:06]} 16. Kf2 {[%clk 0:01:37]}  Rf5+ {[%clk 0:00:29]} 17. Kg3 {[%clk 0:01:36]}  Bd6+ {[%clk 0:00:30]} 18. Kxg4 {[%clk 0:01:36]}  h5+ {[%clk 0:00:30]} 19. Kh3 {[%clk 0:01:37]}  g5 {[%clk 0:00:31]} 20. Nd2 {[%clk 0:01:12]}  Kc7 {[%clk 0:00:31]} 21. Rhf1 {[%clk 0:00:41]}  Kxc6 {[%clk 0:00:23]} 22. Rxf5 {[%clk 0:00:40]}  exf5 {[%clk 0:00:24]} 23. g3 {[%clk 0:00:40]}  Re8 {[%clk 0:00:21]} 24. Nc4 {[%clk 0:00:38]}  Kd5 {[%clk 0:00:16]} 25. Nxd6 {[%clk 0:00:29]}  Kxd6 {[%clk 0:00:17]} 26. Rf1 {[%clk 0:00:29]}  Rxe3 {[%clk 0:00:12]} 27. Rxf5 {[%clk 0:00:28]}  g4+ {[%clk 0:00:12]} 28. Kh4 {[%clk 0:00:28]}  Re2 {[%clk 0:00:11]} 29. Kxh5 {[%clk 0:00:28]}  Rxh2+ {[%clk 0:00:11]} 30. Kxg4 {[%clk 0:00:28]}  Rxa2 {[%clk 0:00:11]} 31. Rxf7 {[%clk 0:00:29]}  Rc2 {[%clk 0:00:10]} 32. Rf3 {[%clk 0:00:26]}  Kd5 {[%clk 0:00:09]} 33. Kf5 {[%clk 0:00:23]}  Re2 {[%clk 0:00:07]} 34. g4 {[%clk 0:00:24]}  Re5+ {[%clk 0:00:08]} 35. Kf6 {[%clk 0:00:24]}  Re6+ {[%clk 0:00:08]} 36. Kf7 {[%clk 0:00:24]}  Ke5 {[%clk 0:00:08]} 37. g5 {[%clk 0:00:23]}  Rb6 {[%clk 0:00:08]} 38. g6 {[%clk 0:00:19]}  Rb7+ {[%clk 0:00:08]} 39. Kg8 {[%clk 0:00:18]}  Ke6 {[%clk 0:00:08]} 40. g7 {[%clk 0:00:18]}  Rb5 {[%clk 0:00:07]} 41. Kh7 {[%clk 0:00:17]}  Rh5+ {[%clk 0:00:07]} 42. Kg6 {[%clk 0:00:17]}  Rh8 {[%clk 0:00:06]} 43. gxh8=Q {[%clk 0:00:17]} 1-0


[Site "https://www.chess.com"]

[Event "Early Titled Tuesday Blitz | February 8 2022"]
[White "Vokhidov, Shamsiddin"]
[Black "Khripachenko, Alexander"]
[WhiteFideId "14204223"]
[BlackFideId "54184975"]
[WhiteElo "2611"]
[BlackElo "2177"]
[Result "0-1"]
[Round "08"]
[TimeControl "180+1"]
[Date "2022.02.08"]
[WhiteClock "0:00:05"]
[BlackClock "0:00:11"]

1. e4 {[%clk 0:03:00]}  c5 {[%clk 0:02:59]} 2. Nf3 {[%clk 0:03:00]}  Nf6 {[%clk 0:02:57]} 3. e5 {[%clk 0:03:00]}  Nd5 {[%clk 0:02:56]} 4. Nc3 {[%clk 0:03:00]}  e6 {[%clk 0:02:56]} 5. Ne4 {[%clk 0:03:01]}  Nc6 {[%clk 0:02:57]} 6. c4 {[%clk 0:03:00]}  Nb6 {[%clk 0:02:55]} 7. b3 {[%clk 0:02:54]}  d5 {[%clk 0:02:46]} 8. exd6 {[%clk 0:02:53]}  Bxd6 {[%clk 0:02:46]} 9. Bb2 {[%clk 0:02:50]}  O-O {[%clk 0:02:46]} 10. Be2 {[%clk 0:02:45]}  e5 {[%clk 0:02:45]} 11. O-O {[%clk 0:02:41]}  Bf5 {[%clk 0:02:44]} 12. d3 {[%clk 0:02:40]}  Re8 {[%clk 0:02:42]} 13. Nfd2 {[%clk 0:02:37]}  Bf8 {[%clk 0:02:40]} 14. Re1 {[%clk 0:02:35]}  Bg6 {[%clk 0:02:35]} 15. Nf1 {[%clk 0:02:32]}  Qd7 {[%clk 0:02:24]} 16. Ba3 {[%clk 0:02:28]}  Nb4 {[%clk 0:02:19]} 17. Bxb4 {[%clk 0:02:28]}  cxb4 {[%clk 0:02:20]} 18. Qc1 {[%clk 0:02:10]}  Rad8 {[%clk 0:02:17]} 19. Qe3 {[%clk 0:02:09]}  Qc7 {[%clk 0:01:37]} 20. Qh3 {[%clk 0:01:58]}  f5 {[%clk 0:01:36]} 21. Neg3 {[%clk 0:01:56]}  Qf7 {[%clk 0:01:35]} 22. Rad1 {[%clk 0:01:53]}  Bc5 {[%clk 0:01:33]} 23. Bh5 {[%clk 0:01:49]}  Nd7 {[%clk 0:01:33]} 24. Qh4 {[%clk 0:01:41]}  Be7 {[%clk 0:01:30]} 25. Qh3 {[%clk 0:01:37]}  Bc5 {[%clk 0:01:30]} 26. Nd2 {[%clk 0:01:31]}  Nf6 {[%clk 0:01:22]} 27. Bxg6 {[%clk 0:01:28]}  hxg6 {[%clk 0:01:23]} 28. Nf3 {[%clk 0:01:28]}  Ng4 {[%clk 0:01:04]} 29. Rf1 {[%clk 0:01:14]}  Qf6 {[%clk 0:01:03]} 30. Ne2 {[%clk 0:01:09]}  e4 {[%clk 0:01:01]} 31. Ne1 {[%clk 0:01:06]}  exd3 {[%clk 0:00:59]} 32. Nxd3 {[%clk 0:01:06]}  Rxe2 {[%clk 0:00:45]} 33. Qf3 {[%clk 0:00:59]}  Rxf2 {[%clk 0:00:20]} 34. Nxf2 {[%clk 0:00:52]}  Nxf2 {[%clk 0:00:19]} 35. Rxd8+ {[%clk 0:00:44]}  Qxd8 {[%clk 0:00:20]} 36. Rxf2 {[%clk 0:00:34]}  Qd4 {[%clk 0:00:20]} 37. g3 {[%clk 0:00:30]}  b6 {[%clk 0:00:13]} 38. Kg2 {[%clk 0:00:26]}  Qxf2+ {[%clk 0:00:13]} 39. Qxf2 {[%clk 0:00:27]}  Bxf2 {[%clk 0:00:14]} 40. Kxf2 {[%clk 0:00:27]}  Kf7 {[%clk 0:00:14]} 41. Ke3 {[%clk 0:00:25]}  Ke6 {[%clk 0:00:15]} 42. Kd4 {[%clk 0:00:24]}  g5 {[%clk 0:00:12]} 43. c5 {[%clk 0:00:19]}  bxc5+ {[%clk 0:00:12]} 44. Kxc5 {[%clk 0:00:20]}  a5 {[%clk 0:00:13]} 45. Kd4 {[%clk 0:00:19]}  Kd6 {[%clk 0:00:13]} 46. h3 {[%clk 0:00:18]}  g6 {[%clk 0:00:13]} 47. Kd3 {[%clk 0:00:14]}  Kd5 {[%clk 0:00:12]} 48. Ke3 {[%clk 0:00:13]}  Ke5 {[%clk 0:00:12]} 49. Kd3 {[%clk 0:00:13]}  f4 {[%clk 0:00:11]} 50. Ke2 {[%clk 0:00:11]}  Ke4 {[%clk 0:00:10]} 51. Kf2 {[%clk 0:00:11]}  Kd3 {[%clk 0:00:07]} 52. Kf3 {[%clk 0:00:10]}  fxg3 {[%clk 0:00:06]} 53. Kxg3 {[%clk 0:00:10]}  Kc3 {[%clk 0:00:06]} 54. Kg4 {[%clk 0:00:11]}  Kb2 {[%clk 0:00:07]} 55. Kxg5 {[%clk 0:00:11]}  Kxa2 {[%clk 0:00:07]} 56. Kxg6 {[%clk 0:00:12]}  a4 {[%clk 0:00:08]} 57. bxa4 {[%clk 0:00:09]}  b3 {[%clk 0:00:08]} 58. h4 {[%clk 0:00:08]}  b2 {[%clk 0:00:09]} 59. h5 {[%clk 0:00:09]}  b1=Q+ {[%clk 0:00:10]} 60. Kg7 {[%clk 0:00:08]}  Qg1+ {[%clk 0:00:10]} 61. Kf6 {[%clk 0:00:08]}  Qd4+ {[%clk 0:00:10]} 62. Kg6 {[%clk 0:00:08]}  Qxa4 {[%clk 0:00:10]} 63. h6 {[%clk 0:00:08]}  Qe8+ {[%clk 0:00:10]} 64. Kg7 {[%clk 0:00:08]}  Qe7+ {[%clk 0:00:11]} 65. Kh8 {[%clk 0:00:06]}  Qf6+ {[%clk 0:00:11]} 66. Kh7 {[%clk 0:00:06]}  Qg5 {[%clk 0:00:11]} 67. Kh8 {[%clk 0:00:05]}  Qxh6+ {[%clk 0:00:11]} 0-1


[Site "https://www.chess.com"]

[Event "Early Titled Tuesday Blitz | February 8 2022"]
[White "Vusatiuk, Vladimir"]
[Black "Perez Gormaz, Matias"]
[WhiteFideId "14118610"]
[BlackFideId "3406342"]
[WhiteElo "2157"]
[BlackElo "2352"]
[Result "1/2-1/2"]
[Round "08"]
[TimeControl "180+1"]
[Date "2022.02.08"]
[WhiteClock "0:00:12"]
[BlackClock "0:00:04"]

1. d4 {[%clk 0:03:00]}  d5 {[%clk 0:02:57]} 2. e4 {[%clk 0:02:50]}  dxe4 {[%clk 0:02:55]} 3. f3 {[%clk 0:02:51]}  Nf6 {[%clk 0:02:52]} 4. Nc3 {[%clk 0:02:48]}  Bf5 {[%clk 0:02:27]} 5. g4 {[%clk 0:02:44]}  Bg6 {[%clk 0:02:27]} 6. h4 {[%clk 0:02:23]}  h5 {[%clk 0:02:14]} 7. g5 {[%clk 0:02:23]}  Nd5 {[%clk 0:02:14]} 8. Nxe4 {[%clk 0:02:24]}  e5 {[%clk 0:02:01]} 9. dxe5 {[%clk 0:02:04]}  Nc6 {[%clk 0:02:01]} 10. Bb5 {[%clk 0:01:50]}  Nb4 {[%clk 0:01:56]} 11. c3 {[%clk 0:01:36]}  Qxd1+ {[%clk 0:01:54]} 12. Kxd1 {[%clk 0:01:37]}  O-O-O+ {[%clk 0:01:53]} 13. Bd2 {[%clk 0:01:37]}  a6 {[%clk 0:01:46]} 14. Ba4 {[%clk 0:01:00]}  Nd3 {[%clk 0:01:47]} 15. Bxc6 {[%clk 0:01:00]}  bxc6 {[%clk 0:01:47]} 16. Kc2 {[%clk 0:00:56]}  Nxe5 {[%clk 0:01:31]} 17. Re1 {[%clk 0:00:45]}  Nd3 {[%clk 0:01:00]} 18. Re2 {[%clk 0:00:35]}  Bc5 {[%clk 0:00:48]} 19. Nh3 {[%clk 0:00:33]}  Ne5 {[%clk 0:00:38]} 20. Nf4 {[%clk 0:00:16]}  Bf5 {[%clk 0:00:35]} 21. Kb3 {[%clk 0:00:11]}  Bb6 {[%clk 0:00:33]} 22. Ng3 {[%clk 0:00:08]}  Nxf3 {[%clk 0:00:11]} 23. Nxf5 {[%clk 0:00:08]}  Nxd2+ {[%clk 0:00:12]} 24. Kc2 {[%clk 0:00:08]}  Nc4 {[%clk 0:00:12]} 25. Nxg7 {[%clk 0:00:06]}  Rhg8 {[%clk 0:00:13]} 26. Nfxh5 {[%clk 0:00:06]}  Ne3+ {[%clk 0:00:12]} 27. Kb3 {[%clk 0:00:06]}  Rd5 {[%clk 0:00:10]} 28. a4 {[%clk 0:00:05]}  Re5 {[%clk 0:00:04]} 29. Rhe1 {[%clk 0:00:05]}  Rh8 {[%clk 0:00:04]} 30. Nf6 {[%clk 0:00:05]}  Rxh4 {[%clk 0:00:04]} 31. a5 {[%clk 0:00:05]}  Rxa5 {[%clk 0:00:03]} 32. Rxe3 {[%clk 0:00:05]}  Rb5+ {[%clk 0:00:03]} 33. Ka2 {[%clk 0:00:04]}  Bxe3 {[%clk 0:00:04]} 34. Rxe3 {[%clk 0:00:04]}  Rh2 {[%clk 0:00:05]} 35. Re8+ {[%clk 0:00:04]}  Kb7 {[%clk 0:00:05]} 36. Ka3 {[%clk 0:00:04]}  Rhxb2 {[%clk 0:00:04]} 37. Re4 {[%clk 0:00:05]}  Rb1 {[%clk 0:00:04]} 38. Rb4 {[%clk 0:00:04]}  R1xb4 {[%clk 0:00:05]} 39. cxb4 {[%clk 0:00:05]}  Rxg5 {[%clk 0:00:05]} 40. Nge8 {[%clk 0:00:04]}  Re5 {[%clk 0:00:05]} 41. Ng7 {[%clk 0:00:03]}  a5 {[%clk 0:00:06]} 42. bxa5 {[%clk 0:00:03]}  Rxa5+ {[%clk 0:00:07]} 43. Kb4 {[%clk 0:00:04]}  Re5 {[%clk 0:00:07]} 44. Nd7 {[%clk 0:00:03]}  Re4+ {[%clk 0:00:07]} 45. Kc3 {[%clk 0:00:03]}  Rg4 {[%clk 0:00:07]} 46. Nf5 {[%clk 0:00:03]}  Rf4 {[%clk 0:00:07]} 47. Nd4 {[%clk 0:00:03]}  Rh4 {[%clk 0:00:06]} 48. Kc4 {[%clk 0:00:03]}  Kc8 {[%clk 0:00:06]} 49. Nc5 {[%clk 0:00:03]}  Rh1 {[%clk 0:00:06]} 50. Kd3 {[%clk 0:00:03]}  Rh6 {[%clk 0:00:06]} 51. Ke4 {[%clk 0:00:04]}  Kb8 {[%clk 0:00:06]} 52. Nf5 {[%clk 0:00:04]}  Rh1 {[%clk 0:00:06]} 53. Ke5 {[%clk 0:00:04]}  Rd1 {[%clk 0:00:06]} 54. Nd4 {[%clk 0:00:04]}  Kc8 {[%clk 0:00:06]} 55. Nxc6 {[%clk 0:00:04]}  Rc1 {[%clk 0:00:06]} 56. Kd5 {[%clk 0:00:04]}  Rd1+ {[%clk 0:00:05]} 57. Ke5 {[%clk 0:00:05]}  Rc1 {[%clk 0:00:06]} 58. Kd5 {[%clk 0:00:05]}  f5 {[%clk 0:00:07]} 59. Ne7+ {[%clk 0:00:05]}  Kb8 {[%clk 0:00:06]} 60. Nxf5 {[%clk 0:00:06]}  Ka7 {[%clk 0:00:07]} 61. Kc6 {[%clk 0:00:06]}  Kb8 {[%clk 0:00:06]} 62. Ne7 {[%clk 0:00:06]}  Ka7 {[%clk 0:00:05]} 63. Nd5 {[%clk 0:00:07]}  Rh1 {[%clk 0:00:04]} 64. Nxc7 {[%clk 0:00:07]}  Rh7 {[%clk 0:00:05]} 65. Nb5+ {[%clk 0:00:07]}  Kb8 {[%clk 0:00:05]} 66. Na6+ {[%clk 0:00:08]}  Kc8 {[%clk 0:00:04]} 67. Nd6+ {[%clk 0:00:08]}  Kd8 {[%clk 0:00:05]} 68. Nc5 {[%clk 0:00:09]}  Rh6 {[%clk 0:00:04]} 69. Nb7+ {[%clk 0:00:10]}  Ke7 {[%clk 0:00:05]} 70. Kc7 {[%clk 0:00:11]}  Rxd6 {[%clk 0:00:04]} 71. Nxd6 {[%clk 0:00:12]} 1/2-1/2


[Site "https://www.chess.com"]

[Event "Early Titled Tuesday Blitz | February 8 2022"]
[White "Wagner, Dennis"]
[Black "Howell, David W L"]
[WhiteFideId "24650684"]
[BlackFideId "410608"]
[WhiteElo "2355"]
[BlackElo "2559"]
[Result "0-1"]
[Round "08"]
[TimeControl "180+1"]
[Date "2022.02.08"]
[WhiteClock "0:00:03"]
[BlackClock "0:00:16"]

1. d4 {[%clk 0:02:23]}  f5 {[%clk 0:02:55]} 2. c4 {[%clk 0:02:22]}  Nf6 {[%clk 0:02:52]} 3. Nf3 {[%clk 0:02:22]}  g6 {[%clk 0:02:50]} 4. Nc3 {[%clk 0:02:19]}  Bg7 {[%clk 0:02:51]} 5. b4 {[%clk 0:02:18]}  O-O {[%clk 0:02:46]} 6. e3 {[%clk 0:02:18]}  d6 {[%clk 0:02:45]} 7. Be2 {[%clk 0:02:19]}  e5 {[%clk 0:02:40]} 8. dxe5 {[%clk 0:02:18]}  dxe5 {[%clk 0:02:41]} 9. Qb3 {[%clk 0:02:17]}  e4 {[%clk 0:02:23]} 10. c5+ {[%clk 0:02:16]}  Kh8 {[%clk 0:02:21]} 11. Nd4 {[%clk 0:02:15]}  Nc6 {[%clk 0:02:17]} 12. Nxc6 {[%clk 0:01:50]}  bxc6 {[%clk 0:02:18]} 13. Bb2 {[%clk 0:01:51]}  a6 {[%clk 0:02:15]} 14. Rd1 {[%clk 0:01:50]}  Qe7 {[%clk 0:02:15]} 15. O-O {[%clk 0:01:49]}  a5 {[%clk 0:02:14]} 16. a3 {[%clk 0:01:47]}  axb4 {[%clk 0:02:12]} 17. axb4 {[%clk 0:01:48]}  Rb8 {[%clk 0:02:11]} 18. Bc4 {[%clk 0:01:46]}  Ng4 {[%clk 0:02:02]} 19. Ne2 {[%clk 0:01:31]}  Bxb2 {[%clk 0:01:56]} 20. Qxb2+ {[%clk 0:01:31]}  Qe5 {[%clk 0:01:57]} 21. Rb1 {[%clk 0:01:08]}  Qxb2 {[%clk 0:01:39]} 22. Rxb2 {[%clk 0:01:09]}  Ne5 {[%clk 0:01:39]} 23. Rc1 {[%clk 0:01:01]}  Ra8 {[%clk 0:01:39]} 24. h4 {[%clk 0:00:47]}  Kg7 {[%clk 0:01:28]} 25. Nd4 {[%clk 0:00:46]}  Kf6 {[%clk 0:01:27]} 26. Be2 {[%clk 0:00:43]}  Ba6 {[%clk 0:01:26]} 27. Bxa6 {[%clk 0:00:08]}  Rxa6 {[%clk 0:01:27]} 28. Rcc2 {[%clk 0:00:08]}  Ra1+ {[%clk 0:01:08]} 29. Kh2 {[%clk 0:00:08]}  Rb8 {[%clk 0:01:09]} 30. Kg3 {[%clk 0:00:06]}  h6 {[%clk 0:01:05]} 31. f3 {[%clk 0:00:06]}  Nd3 {[%clk 0:00:52]} 32. Nxc6 {[%clk 0:00:05]}  Rba8 {[%clk 0:00:36]} 33. Rb3 {[%clk 0:00:06]}  Re1 {[%clk 0:00:35]} 34. b5 {[%clk 0:00:06]}  Rxe3 {[%clk 0:00:28]} 35. b6 {[%clk 0:00:06]}  cxb6 {[%clk 0:00:24]} 36. cxb6 {[%clk 0:00:07]}  Ra1 {[%clk 0:00:24]} 37. b7 {[%clk 0:00:07]}  f4+ {[%clk 0:00:20]} 38. Kh2 {[%clk 0:00:04]}  Ree1 {[%clk 0:00:17]} 39. g4 {[%clk 0:00:03]}  Rh1+ {[%clk 0:00:15]} 40. Kg2 {[%clk 0:00:03]}  Rag1# {[%clk 0:00:16]} 0-1


[Site "https://www.chess.com"]

[Event "Early Titled Tuesday Blitz | February 8 2022"]
[White "Weetik, Vjacheslav"]
[Black "Coto Mederos, Michel"]
[WhiteFideId "4153472"]
[BlackFideId "3508528"]
[WhiteElo "2469"]
[BlackElo "2427"]
[Result "1-0"]
[Round "08"]
[TimeControl "180+1"]
[Date "2022.02.08"]
[WhiteClock "0:00:04"]
[BlackClock "0:00:14"]

1. e4 {[%clk 0:02:58]}  e5 {[%clk 0:02:56]} 2. Nf3 {[%clk 0:02:57]}  Nc6 {[%clk 0:02:55]} 3. d4 {[%clk 0:02:54]}  exd4 {[%clk 0:02:53]} 4. Nxd4 {[%clk 0:02:55]}  Nf6 {[%clk 0:02:53]} 5. Nxc6 {[%clk 0:02:54]}  bxc6 {[%clk 0:02:51]} 6. e5 {[%clk 0:02:54]}  Qe7 {[%clk 0:02:51]} 7. Qe2 {[%clk 0:02:54]}  Nd5 {[%clk 0:02:52]} 8. c4 {[%clk 0:02:52]}  Ba6 {[%clk 0:02:50]} 9. b3 {[%clk 0:02:52]}  g5 {[%clk 0:02:48]} 10. g3 {[%clk 0:02:43]}  Bg7 {[%clk 0:02:41]} 11. Bb2 {[%clk 0:02:42]}  O-O {[%clk 0:02:40]} 12. Bg2 {[%clk 0:02:40]}  Rfe8 {[%clk 0:02:37]} 13. O-O {[%clk 0:02:39]}  Bxe5 {[%clk 0:02:29]} 14. Qxe5 {[%clk 0:02:33]}  Qxe5 {[%clk 0:02:30]} 15. Bxe5 {[%clk 0:02:34]}  Rxe5 {[%clk 0:02:29]} 16. cxd5 {[%clk 0:02:34]}  Bxf1 {[%clk 0:02:28]} 17. Kxf1 {[%clk 0:02:34]}  cxd5 {[%clk 0:02:27]} 18. Nc3 {[%clk 0:02:34]}  c6 {[%clk 0:02:24]} 19. Bf3 {[%clk 0:02:25]}  Rae8 {[%clk 0:02:18]} 20. Rd1 {[%clk 0:02:11]}  Kg7 {[%clk 0:01:57]} 21. Na4 {[%clk 0:02:05]}  R8e7 {[%clk 0:01:54]} 22. Nc5 {[%clk 0:01:54]}  f5 {[%clk 0:01:51]} 23. h3 {[%clk 0:01:51]}  h6 {[%clk 0:01:27]} 24. Nd3 {[%clk 0:01:39]}  R5e6 {[%clk 0:01:26]} 25. Bh5 {[%clk 0:01:27]}  Re4 {[%clk 0:01:12]} 26. Rc1 {[%clk 0:01:12]}  Rd4 {[%clk 0:01:09]} 27. Rc3 {[%clk 0:01:10]}  Kf6 {[%clk 0:01:07]} 28. Bf3 {[%clk 0:00:53]}  d6 {[%clk 0:01:02]} 29. b4 {[%clk 0:00:46]}  Rc4 {[%clk 0:00:54]} 30. Rb3 {[%clk 0:00:40]}  d4 {[%clk 0:00:50]} 31. g4 {[%clk 0:00:28]}  Rc2 {[%clk 0:00:31]} 32. Ra3 {[%clk 0:00:09]}  fxg4 {[%clk 0:00:28]} 33. hxg4 {[%clk 0:00:09]}  c5 {[%clk 0:00:25]} 34. bxc5 {[%clk 0:00:10]}  dxc5 {[%clk 0:00:26]} 35. Ra6+ {[%clk 0:00:10]}  Re6 {[%clk 0:00:27]} 36. Rxa7 {[%clk 0:00:10]}  c4 {[%clk 0:00:27]} 37. Nc5 {[%clk 0:00:10]}  Rc1+ {[%clk 0:00:24]} 38. Kg2 {[%clk 0:00:10]}  Ree1 {[%clk 0:00:24]} 39. Ra6+ {[%clk 0:00:06]}  Ke7 {[%clk 0:00:20]} 40. Ra7+ {[%clk 0:00:03]}  Kd6 {[%clk 0:00:21]} 41. Ne4+ {[%clk 0:00:02]}  Ke6 {[%clk 0:00:19]} 42. Ra6+ {[%clk 0:00:02]}  Ke5 {[%clk 0:00:18]} 43. Ng3 {[%clk 0:00:01]}  d3 {[%clk 0:00:14]} 44. Ra5+ {[%clk 0:00:02]}  Kd4 {[%clk 0:00:14]} 45. Rd5+ {[%clk 0:00:02]}  Kc3 {[%clk 0:00:15]} 46. Ne4+ {[%clk 0:00:03]}  Kb2 {[%clk 0:00:15]} 47. Rb5+ {[%clk 0:00:02]}  Kxa2 {[%clk 0:00:15]} 48. Nc5 {[%clk 0:00:02]}  d2 {[%clk 0:00:14]} 49. Ra5+ {[%clk 0:00:03]}  Kb2 {[%clk 0:00:15]} 50. Rb5+ {[%clk 0:00:03]}  Kc3 {[%clk 0:00:15]} 51. Na4+ {[%clk 0:00:04]}  Kd4 {[%clk 0:00:14]} 52. Rd5# {[%clk 0:00:04]} 1-0


[Site "https://www.chess.com"]